Cogmind - Beta 13 @@@ ROGUE MODE // 2024.06.26 @ 15:51:54 Player: Seff27 Result: Destroyed by S-10 Pest with Light Assault Rifle Performance ------------- Evolutions (2) 1000 Regions Visited (5) 1000 Robots Destroyed (42) 210 Value Destroyed (930) 930 Prototype IDs (0) 0 Alien Tech Used (0) 0 Bonus (0) 0 TOTAL SCORE: 3140 Bonus ------- None Cogmind --------- Core Integrity 0/550 Matter 266/300 Energy 299/300 System Corruption 0% Temperature Cool (0) Movement Rolling (110) Ox2 Location -8/Materials Parts ------- > --- POWER (2) -------- Nuclear Core Light Nuclear Core > --- PROPULSION (3) --- Wheel > --- UTILITY (3) ------ Improved Heat Sink Medium Storage Unit > --- WEAPON (3) ------- Particle Gun Light Assault Rifle High-powered Shotgun > --- INVENTORY (10) --- Improved Deuterium Engine Improved Deuterium Engine Light Fission Core Wheel High-capacity Matter Pod (200) Hardlight Generator Medium Laser Ion Cannon Great Maul Peak State ------------ > --- POWER ------------ Light Nuclear Core Light Nuclear Core > --- PROPULSION ------- Wheel Wheel Compact Wheel > --- UTILITY ---------- Advanced Heat Sink Medium Storage Unit Targeting Computer > --- WEAPON ----------- Particle Gun Particle Gun Great Maul > --- INVENTORY -------- Improved Deuterium Engine Improved Deuterium Engine Light Fission Core High-capacity Matter Pod Hardlight Generator Medium Laser Small Laser Light Assault Rifle Light Assault Rifle Light Assault Rifle [Rating: 25] Favorites ----------- Power Light Ion Engine Engine Light Ion Engine Power Core Light Nuclear Core Propulsion Wheel Leg Aluminum Leg Wheel Wheel Flight Unit Flight Unit Utility Medium Storage Unit Device Heat Sink Storage Medium Storage Unit Processor Targeting Computer Weapon Light Assault Rifle Energy Gun Small Laser Energy Cannon Ion Cannon Ballistic Gun Light Assault Rifle Impact Weapon Great Maul Build | -11 -10 -10 -10 -9 -8 ------- Run | Yrd Mat Min Exi Min Mat Slots Evolved 4 | . . . . . 4 Power 1 | . . . . . 1 Propulsion 1 | . . . . . 1 Utility 1 | . . . . . 1 Weapon 1 | . . . . . 1 Parts Attached 60 | 7 5 . 6 7 35 Power 12 | 1 . . 1 1 9 Engine 6 | 1 . . 1 1 3 Core 6 | . . . . . 6 Reactor . | . . . . . . Propulsion 17 | 2 4 . . 4 7 Treads . | . . . . . . Leg 5 | 2 1 . . 2 . Wheel 11 | . 2 . . 2 7 Hover . | . . . . . . Flight 1 | . 1 . . . . Utility 12 | 2 1 . 4 . 5 Device 6 | 1 1 . 1 . 3 Storage 5 | 1 . . 3 . 1 Processor 1 | . . . . . 1 Hackware . | . . . . . . Protection . | . . . . . . Artifact . | . . . . . . Weapon 19 | 2 . . 1 2 14 Energy Gun 9 | 1 . . 1 1 6 Energy Cannon 1 | . . . . . 1 Ballistic Gun 8 | 1 . . . 1 6 Ballistic Cannon . | . . . . . . Launcher . | . . . . . . Special Weapon . | . . . . . . Impact Weapon 1 | . . . . . 1 Slashing Weapon . | . . . . . . Piercing Weapon . | . . . . . . Special Melee Weapon . | . . . . . . Unidentified Prototypes . | . . . . . . Parts Lost 17 | . . . . 2 15 Power 3 | . . . . . 3 Propulsion 9 | . . . . 2 7 Utility 3 | . . . . . 3 Weapon 2 | . . . . . 2 Highest Loss Streak 6 | . . . . 2 6 To Critical Strikes . | . . . . . . Average Slot Usage (%) 95 | . 100 100 98 98 87 Engine 10 | . 14 14 14 14 4 Core 3 | . . . . . 12 Leg 9 | . 20 . . 23 . Wheel 16 | . 7 28 28 3 22 Device 12 | . 14 14 13 14 10 Storage 12 | . 14 14 14 14 9 Processor 1 | . . . . . 4 Energy Gun 13 | . 14 14 14 15 11 Ballistic Gun 12 | . 14 14 14 12 11 Naked Turns . | . . . . . . Heaviest Build 206 | 14 14 14 206 18 35 Greatest Support 36 | 20 20 20 20 20 36 Greatest Overweight (x) 10 | 1 . . 10 5 2 Average Overweight (x) . | . . . . . . Largest Inventory Capacity 35 | 8 8 8 35 10 10 Average Capacity 9 | 7 8 8 10 10 10 Most Carried 10 | 5 8 8 10 10 10 Average Carried 7 | 2 6 8 7 7 8 Final Capacity 10 | 8 8 8 10 10 10 Final Carried 10 | 5 8 8 8 10 9 Class Distribution -------------------- 68% | Mutant 15% | Scavenger-Gunner 8% | Scavenger-Skirmisher 7% | Scavenger-Mutant Dominant Class ---------------- Mutant | -10/Materials Mutant | -10/Mines Mutant | -10/Exiles Mutant | -9/Mines Scavenger-Gunner | -8/Materials Resources | -11 -10 -10 -10 -9 -8 ----------- Run | Yrd Mat Min Exi Min Mat Matter Collected 1168 | 273 63 135 214 99 384 Remotely . | . . . . . . Salvage Created 1502 | 24 161 115 . 174 1028 Parts 81 | 2 14 10 . 22 33 Haulers Intercepted 1 | . . . . . 1 Recyclers Shooed 3 | . . 1 . . 2 Parts Field Recycled . | . . . . . . Retrieved Matter . | . . . . . . Parts Self-Destructed . | . . . . . . Prevented . | . . . . . . Kills | -11 -10 -10 -10 -9 -8 ------- Run | Yrd Mat Min Exi Min Mat Combat Hostiles Destroyed 29 | . 6 2 . 6 15 Melee 4 | . . . . . 4 Guns 24 | . 6 2 . 6 10 Classes Destroyed 11 | 1 2 2 . 1 5 Worker 3 | . . . . 2 1 Builder 1 | . . 1 . . . Tunneler 3 | 1 . . . 2 . Hauler 1 | . . . . . 1 Recycler 4 | . . 1 . . 3 Watcher 1 | . . . . . 1 Swarmer 13 | . 3 2 . 6 2 Grunt 12 | . 3 . . . 9 Duelist 1 | . . . . . 1 Sentry 2 | . . . . . 2 Hunter 1 | . . . . . 1 Best Kill Streak 6 | 1 2 4 . 6 6 Combat Bots Only 6 | . 2 4 . 6 5 Max Kills in Single Turn 2 | 1 1 1 . 2 1 Gunslinging . | . . . . . . Exploded . | . . . . . . Melee 1 | . . . . . 1 Uniques/NPCs Destroyed . | . . . . . . Combat | -11 -10 -10 -10 -9 -8 -------- Run | Yrd Mat Min Exi Min Mat Hostile Shots Fired 243 | . 27 8 . 35 173 Missed 57 | . 5 4 . 7 41 Damage Taken 2172 | . 186 31 . 223 1732 Core 628 | . 41 7 . 27 553 Absorbed by Shields . | . . . . . . Core Remaining (%) 85 | 100 . . . 70 . Volleys Fired 119 | 1 13 9 . 18 78 Largest 3 | 2 2 2 . 2 3 Hottest 175 | 60 60 60 . 90 175 Shots Fired 249 | 2 26 18 . 36 167 Gun 244 | 2 26 18 . 36 162 Cannon 5 | . . . . . 5 Launcher . | . . . . . . Special . | . . . . . . Kinetic 157 | 1 13 9 . 12 122 Thermal 92 | 1 13 9 . 24 45 Explosive . | . . . . . . Electromagnetic . | . . . . . . Robot Hit Streak 23 | 1 6 3 . 8 23 Robot Miss Streak 6 | 1 3 2 . 6 5 Penetration Max . | . . . . . . Secondary Targets 4 | . 2 . . . 2 Max Gunslinging Chain 1 | . 1 . . . 1 Shots Hit Robots 167 | 1 15 11 . 16 124 Core Hits 77 | 1 8 6 . 11 51 Critical Kills . | . . . . . . Critical Parts Destroyed 1 | . . . . . 1 Critical Strikes 2 | . . . . . 2 Burn 1 | . . . . . 1 Destroy 1 | . . . . . 1 Melee Attacks 12 | . . . . . 12 Impact 12 | . . . . . 12 Slashing . | . . . . . . Piercing . | . . . . . . Sneak Attacks 1 | . . . . . 1 Combat Hostiles . | . . . . . . Follow-up Attacks . | . . . . . . Damage Inflicted 2186 | 22 180 148 . 235 1601 Guns 1733 | 22 180 148 . 235 1148 Cannons 24 | . . . . . 24 Explosions . | . . . . . . Melee 429 | . . . . . 429 Ramming . | . . . . . . Kinetic 996 | 11 100 103 . 84 698 Thermal 761 | 11 80 45 . 151 474 Explosive . | . . . . . . Electromagnetic . | . . . . . . Impact 429 | . . . . . 429 Slashing . | . . . . . . Piercing . | . . . . . . Highest Corruption 1 | . 1 1 1 1 . Average Corruption 1 | . 1 1 1 1 . Corruption Purged . | . . . . . . Corruption Blocked . | . . . . . . Effects 12 | . . 2 5 5 . Message Errors 5 | . . 2 1 2 . Matter Fused 2 | . . . 1 1 . Heat Flow Errors 2 | . . . 1 1 . Energy Discharges 1 | . . . 1 . . Data Loss (minor) 1 | . . . . 1 . Data Loss (major) 1 | . . . 1 . . Overload Shots . | . . . . . . Overflow Damage 110 | . . . . . 110 Projectiles . | . . . . . . Explosions . | . . . . . . Melee 110 | . . . . . 110 Knockbacks 1 | . . . . . 1 Impact 1 | . . . . . 1 Kinetic . | . . . . . . Secondary . | . . . . . . Self-Inflicted Damage . | . . . . . . Shots . | . . . . . . Rammed . | . . . . . . Targets Rammed . | . . . . . . Kicked . | . . . . . . Crushed . | . . . . . . Highest Temperature 367 | . 24 . 197 91 367 Average Temperature 112 | . 15 . 107 35 124 Received Heat Transfer 753 | . 42 . . . 711 Effects 4 | . . . . . 4 Shutdowns 1 | . . . . . 1 Interference 3 | . . . . . 3 Siege Activations . | . . . . . . Robots Corrupted . | . . . . . . Combat Hostiles . | . . . . . . Parts Fried 4 | . . . . . 4 Impact Corruptions 4 | . . . . . 4 Robots Melted . | . . . . . . Combat Hostiles . | . . . . . . Parts Melted 4 | . . . . 3 1 Heat Transferred 1967 | 25 175 100 . 432 1235 Parts Sabotaged . | . . . . . . Parts Stolen . | . . . . . . Parts Stripped . | . . . . . . Power Chain Reactions . | . . . . . . Alert | -11 -10 -10 -10 -9 -8 ------- Run | Yrd Mat Min Exi Min Mat Peak Influence 212 | 5 212 147 . 135 196 Initial 82 | . 3 82 . . 7 Average 97 | 1 87 136 . 100 112 Maximum Alert Level 1 | . 1 . . . . Low Security (%) 98 | 100 93 100 . 100 100 Level 1 1 | . 6 . . . . Level 2 . | . . . . . . Level 3 . | . . . . . . Level 4 . | . . . . . . Level 5 . | . . . . . . High Security . | . . . . . . Max Security . | . . . . . . Squads Dispatched 4 | . 2 . . . 2 Investigation 1 | . . . . . 1 Extermination . | . . . . . . Reinforcement 3 | . 2 . . . 1 Assault . | . . . . . . Garrison . | . . . . . . Intercept . | . . . . . . Searches Triggered . | . . . . . . Construction Impeded . | . . . . . . Haulers Reinforced . | . . . . . . Active Scanning Responses . | . . . . . . Cargo Convoy Interrupts . | . . . . . . Stealth | -11 -10 -10 -10 -9 -8 --------- Run | Yrd Mat Min Exi Min Mat Distress Signals 2 | . . . . 1 1 Communications Jammed . | . . . . . . Distress Signals . | . . . . . . Times Spotted 43 | . 12 3 . 5 23 Peak Tracking Total 6 | . 4 3 . 3 6 Tactical Retreats 2 | . 1 . . . 1 Traps | -11 -10 -10 -10 -9 -8 ------- Run | Yrd Mat Min Exi Min Mat Traps Triggered 2 | . 1 . . . 1 Indirectly . | . . . . . . Trap Hack Attempts . | . . . . . . Triggered . | . . . . . . Disarmed . | . . . . . . Reprogrammed . | . . . . . . Reused . | . . . . . . Traps Extracted . | . . . . . . Installed . | . . . . . . Triggered . | . . . . . . Machines | -11 -10 -10 -10 -9 -8 ---------- Run | Yrd Mat Min Exi Min Mat Machines Disabled . | . . . . . . Max in Single Turn . | . . . . . . Machines Repaired . | . . . . . . Machines Dismantled . | . . . . . . Machines Sabotaged . | . . . . . . Overloaded Fab Kills . | . . . . . . Hacking | -11 -10 -10 -10 -9 -8 --------- Run | Yrd Mat Min Exi Min Mat Machines Accessed 3 | . 1 . 1 . 1 Terminals 1 | . 1 . . . . Fabricators . | . . . . . . Repair Stations . | . . . . . . Recycling Units 1 | . . . . . 1 Scanalyzers . | . . . . . . Garrison Access . | . . . . . . Total Hacks 25 | . 1 . 23 . 1 Successful 25 | . 1 . 23 . 1 Failed . | . . . . . . Catastrophic . | . . . . . . Database Lockouts . | . . . . . . Manual 1 | . . . 1 . . Terminals 1 | . 1 . . . . Fabricators . | . . . . . . Repair Stations . | . . . . . . Recycling Units 1 | . . . . . 1 Scanalyzers . | . . . . . . Garrison Access . | . . . . . . Terminal Hacks 24 | . 1 . 23 . . Record 23 | . . . 23 . . Zone Layout 1 | . 1 . . . . Fabricator Hacks . | . . . . . . Repair Station Hacks . | . . . . . . Recycling Unit Hacks 1 | . . . . . 1 Report Inventory 1 | . . . . . 1 Scanalyzer . | . . . . . . Garrison Access Hacks . | . . . . . . Unauthorized Hacks . | . . . . . . Terminals . | . . . . . . Fabricators . | . . . . . . Repair Stations . | . . . . . . Recycling Units . | . . . . . . Scanalyzers . | . . . . . . Garrison Access . | . . . . . . Data Cores Recovered . | . . . . . . Used . | . . . . . . Hacking Detections 1 | . 1 . . . . Full Trace Events . | . . . . . . Feedback Events . | . . . . . . Feedback Blocked . | . . . . . . Robot Schematics Acquired . | . . . . . . Robots Built . | . . . . . . Authchips . | . . . . . . Time . | . . . . . . Total Robot Build Rating . | . . . . . . Part Schematics Acquired . | . . . . . . Parts Built . | . . . . . . Authchips . | . . . . . . Time . | . . . . . . Total Part Build Rating . | . . . . . . Parts Repaired . | . . . . . . Time . | . . . . . . Parts Recycled . | . . . . . . Recycled Matter . | . . . . . . Retrieved Matter . | . . . . . . Retrieved Components . | . . . . . . Parts Scanalyzed . | . . . . . . Part Schematics Acquired . | . . . . . . Parts Damaged . | . . . . . . Bothacking | -11 -10 -10 -10 -9 -8 ------------ Run | Yrd Mat Min Exi Min Mat Used RIF Installer . | . . . . . . Robots Hacked . | . . . . . . Non-combat . | . . . . . . Combat . | . . . . . . Robot Hacks Applied . | . . . . . . Relay Couplers Released . | . . . . . . Fabnet Peak Effective % . | . . . . . . Robots Rewired . | . . . . . . Allies Hacked . | . . . . . . Hacks Repelled . | . . . . . . Allies | -11 -10 -10 -10 -9 -8 -------- Run | Yrd Mat Min Exi Min Mat Total Allies . | . . . . . . Largest Group . | . . . . . . Highest-Rated Group . | . . . . . . Highest-Rated Ally . | . . . . . . Total Orders . | . . . . . . Ally Attacks . | . . . . . . Total Damage . | . . . . . . Kills . | . . . . . . Allies Corrupted . | . . . . . . Allies Melted . | . . . . . . Intel | -11 -10 -10 -10 -9 -8 ------- Run | Yrd Mat Min Exi Min Mat Robot Analysis Total . | . . . . . . Derelict Logs Recovered 1 | . . . . 1 . Drone Launches . | . . . . . . Drone Recoveries . | . . . . . . Exploration | -11 -10 -10 -10 -9 -8 ------------- Run | Yrd Mat Min Exi Min Mat Turns Passed 2022 | 115 263 74 434 523 613 Spaces Moved 1535 | 79 186 53 509 371 337 Core 5 | 4 . . . 1 . Treads . | . . . . . . Legs 560 | 75 132 . . 353 . Wheels 970 | . 54 53 509 17 337 Hover . | . . . . . . Flight . | . . . . . . Fastest Speed 50 | 50 80 80 80 80 80 Average Speed 97 | 118 108 80 80 118 89 Slowest Speed 300 | 120 120 80 230 300 115 Overloaded Moves . | . . . . . . Propulsion Burnouts . | . . . . . . Robots Hopped . | . . . . . . Cave-ins Triggered . | . . . . . . Exploration Rate (%) 37 | 5 36 5 77 73 29 Regions Visited 5 Branch Regions 3 Pre-discovered Areas 1 | . . . 1 . . Known Exits Taken . | . . . . . . Unknown Exits Taken 5 | 1 1 1 1 1 . Scrap Searched . | . . . . . . Spaces Dug . | . . . . . . Terrain Destroyed 2 | . . . . . 2 Melee . | . . . . . . Projectile 2 | . . . . . 2 AOE . | . . . . . . Terrain Rammed . | . . . . . . Walls Destroyed . | . . . . . . Machines Disabled . | . . . . . . Actions | -11 -10 -10 -10 -9 -8 --------- Run | Yrd Mat Min Exi Min Mat Total 1849 | 98 222 66 533 418 512 Wait 35 | . . 5 1 11 18 Move 1530 | 78 185 52 508 370 337 Hop . | . . . . . . Pick Up 63 | 12 11 . 11 8 21 Fast Attach 4 | . . . . . 4 Attach 30 | 7 . . 3 5 15 Detach . | . . . . . . Swap 26 | . 5 . 3 2 16 Drop 30 | . 8 . 7 4 11 Fire 119 | 1 13 9 . 18 78 Melee 12 | . . . . . 12 Ram . | . . . . . . Kick . | . . . . . . Crush . | . . . . . . Escape Stasis . | . . . . . . Rewire . | . . . . . . Trap . | . . . . . . Miscellaneous . | . . . . . . Route ------- -11/Scrapyard -10/Materials (discovered 2 exits: [*Min x2]) -10/Mines -10/Exiles -9/Mines (discovered 2 exits: *Mat x2) -8/Materials (discovered 1 exit: Fac) History --------- Turn | Location | Event 2 | -11/Scrapyard | Met Revision 17 10 | -11/Scrapyard | Discovered new exit (range 15) 116 | -11/Scrapyard | Entered Materials 116 | -10/Materials | Discovered new exit (range 7) 211 | -10/Materials | Met 8R-AWN 323 | -10/Materials | Build established: Mutant 346 | -10/Materials | Discovered new exit (range 14) 379 | -10/Materials | Entered Mines 380 | -10/Mines | Followed 8R-AWN into the Mines 397 | -10/Mines | Met a Derelict bent on vengeance 414 | -10/Mines | Discovered new exit (range 5) 453 | -10/Mines | Entered Exiles 477 | -10/Exiles | Welcomed by 8R-AWN 490 | -10/Exiles | Met EX-HEX 536 | -10/Exiles | Met EX-DEC 619 | -10/Exiles | Learned location of Zion (-7) 650 | -10/Exiles | Visited The Gauntlet 838 | -10/Exiles | Discovered new exit (range 14) 887 | -10/Exiles | Entered Mines 948 | -9/Mines | Discovered new exit (range 7) 1189 | -9/Mines | Discovered new exit (range 8) 1410 | -9/Mines | Entered Materials 1410 | -8/Materials | Evolved 4 slots: Power x1, Propulsion x1, Utility x1, Weapon x1 1411 | -8/Materials | Identified exit to Factory 1645 | -8/Materials | Lost 6 parts (1p2n2u1w) 1810 | -8/Materials | Core integrity fell below 50% 1855 | -8/Materials | Lost 5 parts (2p2n1w) 1888 | -8/Materials | Core integrity fell below 20% 2023 | -8/Materials | Destroyed by S-10 Pest with Light Assault Rifle Last Messages --------------- 01949_ Dropped Sml. Laser. 01950_ K-01 Serf collects debris. 01987_ S-10 Pest destroyed. 01996_ Targeting Computer destroyed. 01997_ Heat Sink melted. 01997_ Y-45 Defender destroyed. 01999_ Power failure, Lgt. Nuclear Core shutdown. 02001_ U-05 Engineer builds a Wall. 02007_ Wheel destroyed. 02009_ Overheating: System interference. 02009_ Particle Gun temporarily disabled. 02009_ Hpw. Shotgun temporarily disabled. 02009_ K-01 Serf collects debris. 02011_ S-10 Pest destroyed. 02012_ K-01 Serf collects debris. 02012_ S-10 Pest destroyed. 02015_ K-01 Serf collects debris. 02016_ Wheel destroyed. 02018_ K-01 Serf collects debris. Map ----- +----------------------------------------------------+ | ??????????????????????######### # #?? | | ??????????????????????#[ ## # #?? | | ??????????????????????# """ ## # ] #?? | | ??????????????????????# """ ## ###+######## | | ??????????????????????# """ # %% %! | | ??????????????????????# [# = [= | | ??????????????????????# [ + | | ?????????????????############# """ "" " | | ?????????????????# ####### """ """" | | ?????????????????# """ """" | | ?????????????????# % % | | ?????????????????# ! % | | ?????????????????# ##############T# | | ?????????????????## ##????????????### ! | | ??????????????????# #???????????????# | | ??????????????????# #?????????????#####+## | | ??????????????????# #?????????????# | | ??????????????????# #?????????????# | | ??????????????????# #?????????????# | | ??????????????????# #?????????????# | | ??????????????????# #?????????????######## | | ???????????######## #????????????????# | | ???????????# ## #???????#????????# "" | | ???????????# =s%= #???????????#????# "" | | ???????????# %[=k #????????????????# "" | | ???????????# =%%@ #????????????????# "" | | ???????????# ###+##????????????????# "" | | ???????????## ### ????????????????# "" | | ????????????# ??# ??????????????# "" | | ????????????# ???# ^ ????? ??????# | | ????????????# ???# #?????########### | | ????????????# ????# #?????# #??## | | ???????????? ????######+#+#??? ?# #???# | | ??????????? ????????????????????# #???# | | ?????????? ????????????????????# ###?#" | | ?????????? ?????????????????????# +%#?#" | | ?????????###?????????????????????# ""# #?#" | | ?????????????????????????????????# Y"#%#?# | | ??????????????????????????????? ?# ""# #?# | | ?????????????????????????????????# #%#?## | | ????????????????????????#????????###### #### | | ???????????????????????????????##?????# | | ??????????????????????????#???????#???###### | | ??????????????????????????????????????????#? | | ??????????????????????????????????#?##??#### | | ????????????????????????????????????????#** | | ?????????????????????????????#????????#?#** | | ????????????????????????????????????????# | | ???????????????????????????????????#?#??# | | ?????????????????????????????????#?#????#!! | +----------------------------------------------------+ Best States ------------- Heat Dissipation 50 Energy Generation 27 Energy Capacity 480 Matter Stores 300 Matter Capacity 300 Sight Range 16 Terrain Scan Range 16 Terrain Scan Density 10 Evasion (%) 55 Targeting Accuracy 5 Item Schematics ----------------- None Robot Schematics ------------------ None Fabricated ------------ Nothing Alien Tech Used ----------------- None Achievements -------------- Librarian Tank Tourist Challenges ------------ None Game ------ Seed ServoThermalDetector Manual? 0 Play Time 00:53:51 Cumulative 9.1 hours Start 2024.06.26 @ 14:44:55 End 2024.06.26 @ 15:51:54 Sessions 1 Manual Loads 0 Difficulty Rogue Special Mode None Game No. 8 Rogue 8 Adventurer 0 Explorer 0 Win Type - Total 0 Types 0/0/0/0/0/0/0/0/0 Lore% 6 Gallery% 10 Achievement% 9 Wizard Run 0 Options --------- Layout 1 ASCII 0 Keyboard 0 Movement Mouse Keybinds 0 Fullscreen 1 Font 24/Smallcaps Map View 25x17 Zoom Use 99% Tactical HUD 1 Map Filters NONE Filters NONE Steam 0 RUN: 858c9368-eced-4683-9ac9-21c7cf0f59bf